[Event "57th Biel Festival MTO 2024"]
[White "Rappazzo,Johannes"]
[Black "Koustav Chatterjee"]
[Site "Biel"]
[Round "1.12"]
[Annotator "TA"]
[Result "0-1"]
[Date "2024.07.15"]
[WhiteElo "2169"]
[BlackElo "2525"]
[PlyCount "66"]
[TimeControl "60"]

{[%evp 14,66,-10,0,-14,-25,-27,-37,-20,0,0,0,0,0,0,0,21,11,41,20,41,42,59,15,31,10,47,-102,-112,-231,-242,-262,-231,-538,-538,-518,-509,-747,-479,-535,-539,-510,-515,-543,-257,-672,-691,-1251,-811,-1916,-1909,-1552,-1080,-1614,-1568]} 1. e4 {[%emt 0:0:3]} e5 {[%emt 0:0:24]} 2. Nf3 {[%emt 0:0:5]} Nc6 {[%emt 0:0:4]} 3. Bc4 {[%emt 0:0:8]} Bc5 {[%emt 0:0:22]} 4. b4 {[%emt 0:0:3]} Bxb4 {[%emt 0:0:19]} 5. c3 {[%emt 0:0:4]} Ba5 {[%emt 0:0:6]} 6. d4 {[%emt 0:0:5]} d6 {[%emt 0:0:39]} 7. Qb3 {[%emt 0:0:5]} Qd7 {[%emt 0:0:12]} 8. O-O {[%emt 0:0:48]} Bb6 {[%emt 0:1:32]} 9. Nbd2 {[%emt 0:0:7]} Na5 {[%emt 0:3:29]} 10. Qc2 {[%emt 0:0:7]} Ne7 {[%emt 0:1:31] Black is slightly better.} 11. dxe5 {[%emt 0:0:26]} O-O {[%emt 0:1:2]} 12. Ba3 {[%emt 0:0:29]} Ng6 {[%emt 0:15:4]} 13. exd6 {[%emt 0:0:6]} cxd6 {[%emt 0:0:5]} 14. Bd5 {[%emt 0:0:6]} Qc7 {[%emt 0:1:58]} 15. c4 {[%emt 0:33:34][%cal Oe4e5]} Nf4 {[%emt 0:25:35]} 16. g3 {[%emt 0:13:29]} Nxd5 {[%emt 0:14:16]} 17. exd5 {[%emt 0:0:9]} h6 {[%emt 0:0:3] Inhibits Ng5.} 18. Qe4 {[%emt 0:23:20] Dodges Re8} Bh3 {[%emt 0:18:2]} 19. Rfe1 {[%emt 0:7:39]} Rac8 {[%emt 0:1:26][%cal Ra5c4]} 20. Qh4 {[%emt 0:4:8]} (20. Rac1 $1 $14 {keeps the upper hand.} )Nxc4 $17 {[%emt 0:3:32]} 21. Rec1 {[%emt 0:10:43] [#]} (21. Nxc4 $17 Qxc4 22. Qxh3 )Nxd2 $1 $19 {[%emt 0:3:17]} 22. Nxd2 {[%emt 0:6:37]} Qd7 {[%emt 0:0:34]} 23. Ne4 $2 {[%emt 0:1:39]} (23. Nc4 {was the crucial defense.} )Rxc1+ {[%emt 0:8:20]} 24. Rxc1 {[%emt 0:0:19]} Re8 {[%emt 0:0:5] And now ...Qf5 would win.} 25. Re1 {[%emt 0:4:1]} Re5 {[%emt 0:4:33] [#] Threatens to win with ...Bd8.} 26. Bb2 {[%emt 0:2:25]} Bd8 {[%emt 0:1:9] A strong pair of Bishops.} 27. Qf4 {[%emt 0:1:19]} Rxd5 {[%emt 0:0:6]} 28. Qf3 {[%emt 0:0:40]} Qf5 {[%emt 0:2:13]} (28... Ba5 $142 29. Bc3 Rf5 )29. Qc3 {[%emt 0:0:42]} (29. Qxf5 Bxf5 30. Nc3 )Re5 {[%emt 0:0:11] ...Bb6 would now be deadly. Black is clearly winning.} 30. Re2 {[%emt 0:1:23]} Ba5 {[%emt 0:1:14]} ({Not} 30... Rxe4 31. Qxg7# )31. Qd3 {[%emt 0:0:31]} Rd5 {[%emt 0:1:20]} 32. Qb3 {[%emt 0:0:27]} Bg4 {[%emt 0:0:15]} 33. Re3 {[%emt 0:0:25]} Rd1+ {[%emt 0:0:15] Weighted Error Value: White=1.16/Black=0.66.  Mistake:       	White=4     	Black=1      Inaccurate:     	White=3     	Black=3      OK:         	White=5     	Black=7      Best:        	White=1     	Black=1      Strong:       	---       	Black=1} 0-1

[Event "57th Biel Festival MTO 2024"]
[White "Xiao,Tong"]
[Black "Frayna,Janelle Mae"]
[Site "Biel"]
[Round "1.13"]
[Annotator "TA"]
[Result "1-0"]
[Date "2024.07.15"]
[WhiteElo "2518"]
[BlackElo "2164"]
[PlyCount "67"]
[TimeControl "60"]

{[%evp 9,67,0,25,33,25,17,42,28,25,31,38,38,41,29,17,12,16,18,49,34,56,49,55,47,52,0,-8,-14,50,25,33,13,43,35,50,35,110,107,140,133,150,138,167,159,195,199,238,218,221,159,175,175,240,223,300,254,273,234,575,606]} 1. e4 {[%emt 0:0:3]} c6 {[%emt 0:0:15]} 2. d4 {[%emt 0:0:32]} d5 {[%emt 0:0:7]} 3. e5 {[%emt 0:0:27]} c5 {[%emt 0:0:55]} 4. dxc5 {[%emt 0:0:36]} e6 {[%emt 0:0:33]} 5. a3 {[%emt 0:0:38]} Nc6 {[%emt 0:1:25]} 6. Nf3 {[%emt 0:0:37]} Bxc5 {[%emt 0:3:54]} 7. b4 {[%emt 0:0:44] Dodges Qa5} Be7 {[%emt 0:3:32]} 8. Bb2 {[%emt 0:2:20] White is slightly better.} f6 {[%emt 0:0:36]} 9. Nbd2 {[%emt 0:14:41]} Nh6 {[%emt 0:7:21]} 10. c4 {[%emt 0:2:48]} O-O {[%emt 0:0:0]} 11. exf6 {[%emt 0:5:57]} Bxf6 {[%emt 0:0:0]} 12. Bxf6 {[%emt 0:0:10]} Qxf6 {[%emt 0:0:0]} 13. Be2 {[%emt 0:1:7]} Ne5 {[%emt 0:7:18]} 14. O-O {[%emt 0:0:40]} Ng6 {[%emt 0:0:3]} 15. Re1 {[%emt 0:7:17]} b6 {[%emt 0:7:34]} 16. cxd5 {[%emt 0:11:28]} exd5 {[%emt 0:0:6]} 17. Nf1 {[%emt 0:1:45]} (17. Qb3 $14 )Nf4 $1 $11 {[%emt 0:1:1][%cal Oc8h3]} 18. Qd4 {[%emt 0:1:41]} Qd6 {[%emt 0:4:11]} (18... Bh3 $11 19. Qxf6 (19. gxh3 Nxe2+ 20. Rxe2 Qxf3 $15 )Rxf6 20. gxh3 (20. Ne3 Bxg2 21. Nxd5 Nxd5 $17 )Nxe2+ 21. Rxe2 Rxf3 )19. Ne5 {[%emt 0:9:11]} Bb7 {[%emt 0:8:25]} 20. Ng3 {[%emt 0:3:52]} Ne6 {[%emt 0:8:41]} 21. Qb2 {[%emt 0:0:43]} Rad8 {[%emt 0:4:49]} 22. Rac1 {[%emt 0:1:47]} Ng5 {[%emt 0:5:50]} (22... Kh8 $14 )23. Bb5 $16 {[%emt 0:3:29][%cal Be2b5,Bb5c6,Bc6b7,Bb7a6][%mdl 32]} a6 {[%emt 0:5:36]} 24. Bc6 {[%emt 0:1:3] White is more active.} Bc8 {[%emt 0:0:18]} 25. Qd4 {[%emt 0:3:35][%cal Oc1d1]} b5 {[%emt 0:4:37]} 26. Red1 {[%emt 0:8:48]} Be6 {[%emt 0:3:15] [#]} 27. Bb7 $1 {[%emt 0:1:38]} Nf5 {[%emt 0:1:4]} 28. Nxf5 {[%emt 0:0:40]} Rxf5 {[%emt 0:0:1]} 29. f4 {[%emt 0:0:38][%cal Oc1c6] Strongly threatening Rc6!} Nf7 {[%emt 0:1:30][%cal Rf7e5,Bg5f7,Bf7d6,Bd6e4][%mdl 32]} 30. Rc6 {[%emt 0:1:57]} Qe7 {[%emt 0:2:18]} 31. Bxa6 {[%emt 0:1:10]} Nd6 {[%emt 0:3:10]} 32. Re1 {[%emt 0:2:34]} Ne4 {[%emt 0:4:8]} 33. g3 {[%emt 0:1:7]} g5 $2 {[%emt 0:1:1] [#]} (33... Rxe5 34. fxe5 (34. Qxe5 Qa7+ 35. Kh1 Bg4 $11 )Ng5 )34. Ng4 {[%emt 0:0:30] Weighted Error Value: White=0.10 (very precise) /Black=0.37.  Mistake:       	White=1     	Black=3      Inaccurate:     	---       	Black=4      OK:         	White=17    	Black=7      Best:        	White=1     	---        Strong:       	---       	Black=1} 1-0

[Event "57th Biel Festival MTO 2024"]
[White "Vincenti,Leonardo"]
[Black "Sokolovsky,Yahli"]
[Site "Biel"]
[Round "1.14"]
[Annotator "TA"]
[Result "0-1"]
[Date "2024.07.15"]
[WhiteElo "2166"]
[BlackElo "2492"]
[PlyCount "58"]
[TimeControl "60"]

{[%evp 12,58,20,3,-4,-14,0,-45,-40,-43,-32,-107,-20,-66,-68,-54,-62,-47,-60,-66,-69,-349,-175,-210,-134,-116,-57,-59,-20,-205,-167,-171,-169,-162,-171,-165,-152,-150,-143,-170,-167,-650,-650,-827,-827,-1765,-1065,-966,-935]} 1. e4 {[%emt 0:0:1]} e5 {[%emt 0:0:11]} 2. Nf3 {[%emt 0:0:2]} Nc6 {[%emt 0:0:10]} 3. d4 {[%emt 0:0:22]} exd4 {[%emt 0:0:8]} 4. Nxd4 {[%emt 0:0:4]} Bc5 {[%emt 0:0:11]} 5. Be3 {[%emt 0:0:20]} Qf6 {[%emt 0:0:26]} 6. c3 {[%emt 0:0:3]} d6 {[%emt 0:1:35]} 7. Bc4 {[%emt 0:1:31]} Qg6 {[%emt 0:7:40][%csl LRe4,LRg2]} 8. O-O {[%emt 0:4:26]} Ne5 {[%emt 0:0:44][%cal Oc8h3]} 9. Be2 {[%emt 0:5:53]} Bh3 {[%emt 0:2:29][%csl Gh3][%cal Rg6g2] Black is slightly better.} 10. Bf3 {[%emt 0:0:29]} Nf6 {[%emt 0:15:12][%cal Oe8c8]} 11. Nd2 {[%emt 0:8:59] [#]} (11. Kh1 $15 Bd7 12. Nd2 )O-O {[%emt 0:3:19]} ({Better is} 11... Nh5 $1 $17 {White must now prevent ...Nxf3+.} 12. Re1 Nxf3+ 13. Qxf3 Bg4 )12. Nf5 {[%emt 0:9:3]} Bxf5 $15 {[%emt 0:3:0]} 13. exf5 {[%emt 0:0:30]} Qxf5 {[%emt 0:0:13]} 14. Bxb7 {[%emt 0:6:22]} Rab8 {[%emt 0:0:23]} 15. Bxc5 {[%emt 0:2:11]} dxc5 {[%emt 0:0:10]} 16. Ba6 {[%emt 0:12:48][%mdl 8192] [#]} (16. f4 $1 $15 Ng6 (16... Rxb7 17. fxe5 Qxe5 18. Qf3 $15 )17. Qf3 )Rfd8 {[%emt 0:16:27]} (16... Rxb2 17. Nc4 Nxc4 18. Bxc4 $17 )(16... Qf4 $142 17. Qe2 Nfg4 (17... Rxb2 $2 18. g3 $19 ))17. Qc1 {[%emt 0:4:26]} Nfg4 {[%emt 0:6:7] Excellent horsemanship.} 18. f4 {[%emt 0:14:58]} Nd3 {[%emt 0:20:8] Black is much more active.} (18... Ng6 $17 {[%cal Of5e6] ...Qe6! is the strong threat.} 19. Nb3 Qe6 )19. Bxd3 {[%emt 0:2:18]} Rxd3 {[%emt 0:9:24]} 20. Rf3 $2 {[%emt 0:9:10]} (20. Nc4 $11 )Ne3 {[%emt 0:0:47]} 21. Nf1 {[%emt 0:8:34]} Rd1 $40 {[%emt 0:0:58][%mdl 128] White is in trouble.} 22. Qxd1 {[%emt 0:0:1]} Nxd1 {[%emt 0:0:10]} 23. Rxd1 {[%emt 0:0:4]} c4 {[%emt 0:1:34][%cal Of5a5]} ({Weaker is} 23... Rxb2 24. Rd8# )24. Rf2 {[%emt 0:3:31]} h6 {[%emt 0:0:31]} 25. Ng3 {[%emt 0:3:11]} Qc5 {[%emt 0:1:30]} 26. Ne4 $2 {[%emt 0:2:23]} (26. Rdd2 )Qe3 $19 {[%emt 0:1:0] Black is clearly winning.} 27. Rd4 {[%emt 0:3:35]} Rxb2 {[%emt 0:1:22]} 28. Nd2 {[%emt 0:0:5] Inhibits Rb1+.} Qxc3 {[%emt 0:2:1]} 29. Rxc4 {[%emt 0:0:8]} Qd3 {[%emt 0:0:20] Weighted Error Value: White=0.98/Black=0.59.  Loses game:     	White=2     	---        Mistake:       	White=3     	Black=3      Inaccurate:     	White=1     	Black=2      OK:         	White=7     	Black=5      Best:        	White=2     	Black=4} 0-1

[Event "57th Biel Festival MTO 2024"]
[White "Madaminov,Mukhiddin"]
[Black "Malli,Suvirr"]
[Site "Biel"]
[Round "1.15"]
[Annotator "TA"]
[Result "1-0"]
[Date "2024.07.15"]
[WhiteElo "2517"]
[BlackElo "2147"]
[PlyCount "81"]
[TimeControl "60"]

{[%evp 9,80,0,37,28,32,30,29,31,39,33,33,37,41,2,37,36,76,70,89,81,102,97,210,160,218,225,216,234,231,231,245,254,258,241,247,196,189,189,188,178,283,281,293,297,263,266,271,154,275,154,283,250,266,248,250,245,252,239,233,248,231,236,422,347,426,401,29992,29993,29997,29998,29998,29999,29999]} 1. e4 {[%emt 0:0:55]} c5 {[%emt 0:0:11]} 2. Nf3 {[%emt 0:0:46]} d6 {[%emt 0:0:17]} 3. d4 {[%emt 0:0:34]} cxd4 {[%emt 0:0:11]} 4. Nxd4 {[%emt 0:0:13]} Nf6 {[%emt 0:0:9]} 5. Bd3 {[%emt 0:0:55]} e5 {[%emt 0:1:39]} 6. Nf3 {[%emt 0:0:50]} Be7 {[%emt 0:7:6]} 7. c4 {[%emt 0:0:57]} O-O {[%emt 0:4:43]} 8. Nc3 {[%emt 0:0:49] Weiß hat minimalen Vorteil.} Na6 {[%emt 0:3:40]} 9. h3 {[%emt 0:6:0]} Be6 {[%emt 0:5:36]} 10. O-O {[%emt 0:2:41]} Nc5 {[%emt 0:2:55]} 11. b3 {[%emt 0:2:18]} Nxd3 {[%emt 0:1:8]} 12. Qxd3 {[%emt 0:0:9]} Ne8 {[%emt 0:1:53]} 13. Rd1 {[%emt 0:6:38] Weiß behält die Zügel nun fest in der Hand.} Kh8 {[%emt 0:7:23]} 14. Qe3 {[%emt 0:4:25] Schwarz muss nun Nxe5 beachten.} Qc8 {[%emt 0:3:17]} 15. Ba3 {[%emt 0:2:47] Zielt auf Nxe5 ab. Weiß steht deutlich aktiver. Die schwarzen Türme stehen passiv.} f5 {[%emt 0:7:59]} (15... f6 $16 )16. Nxe5 {[%emt 0:14:27] Und exf5 würde nun gewinnen.} Bf6 {[%emt 0:2:4]} (16... f4 $16 17. Qf3 Qc7 )17. exf5 $18 {[%emt 0:2:49]} (17. Bxd6 $2 Nxd6 18. f4 Nxe4 19. Nxe4 fxe4 20. Qxe4 Qc5+ 21. Qd4 Qa5 $19 (21... Qxd4+ $2 22. Rxd4 Kg8 23. Kh2 $19 ))Bxf5 {[%emt 0:3:10]} 18. Bxd6 {[%emt 0:12:20]} Nxd6 {[%emt 0:0:14]} 19. Rxd6 {[%emt 0:0:6]} Re8 {[%emt 0:11:1]} 20. f4 {[%emt 0:11:10]} Be7 {[%emt 0:5:29]} 21. Rd5 {[%emt 0:0:55]} Be6 {[%emt 0:1:14]} 22. Rd4 {[%emt 0:0:9]} Bc5 {[%emt 0:2:6] [#]} 23. Ne4 $1 {[%emt 0:0:38]} Bxd4 {[%emt 0:0:34]} 24. Qxd4 {[%emt 0:0:9] Und jetzt Nd6 wäre schön.} Qd8 {[%emt 0:7:17] [#]} (24... Re7 {war angesagt.} 25. Nd6 Qc7 )25. Nd6 $1 {[%emt 0:2:55] Ein dynamisches Springerpaar.} Rf8 {[%emt 0:1:45] [#] Verhindert Ndf7+} 26. f5 $1 {[%emt 0:1:15][%mdl 512]} Bg8 {[%emt 0:5:1] Schwarz ist schwach auf den weissen Feldern} 27. Rd1 {[%emt 0:0:10]} Qg5 {[%emt 0:1:40]} 28. Rd3 {[%emt 0:3:5]} (28. Nxb7 Rxf5 29. Ng4 Raf8 $17 )(28. g4 $18 )b6 {[%emt 0:8:30]} (28... Rxf5 $16 29. Nf3 (29. Nxf5 Qxf5 30. Re3 Rf8 $18 )Qf6 (29... Qc1+ $2 30. Rd1 $16 ))29. Kh2 {[%emt 0:1:33]} ({Besser ist} 29. h4 $18 Qe7 30. h5 )Qf6 {[%emt 0:4:54]} (29... Rxf5 $16 30. Nxf5 Qxf5 )30. Nd7 {[%emt 0:2:20][%csl LRf6,LRf8]} Qxd4 {[%emt 0:0:8]} 31. Rxd4 {[%emt 0:0:5]} Rfd8 {[%emt 0:0:18]} 32. Ne5 {[%emt 0:0:12]} Rf8 {[%emt 0:3:16] Lässt Ndf7+ nicht zu} 33. Rh4 {[%emt 0:0:38][%csl Gf5][%cal Re5g6]} g5 {[%emt 0:0:32]} 34. Rd4 {[%emt 0:9:29]} ({Auf keinen Fall} 34. fxg6 $6 Rf6 $16 )Kg7 {[%emt 0:3:3]} 35. g4 {[%emt 0:0:41]} h5 $2 {[%emt 0:2:23]} (35... a5 {war einen Versuch wert.} 36. h4 (36. Nd7 Rfd8 $18 )h6 37. hxg5 hxg5 )36. gxh5 {[%emt 0:5:11]} Kh6 {[%emt 0:0:47]} 37. Ng4+ {[%emt 0:0:20]} Kxh5 {[%emt 0:1:29]} (37... Kh7 $18 38. Kg3 Rad8 )38. Ne4 {[%emt 0:0:31] Weiß setzt Matt.} Rad8 {[%emt 0:1:47]} 39. Ng3+ {[%emt 0:0:24]} Kh4 {[%emt 0:0:8]} 40. Ne3+ {[%emt 0:0:18]} Rxd4 {[%emt 0:0:6]} 41. Ng2# {[%emt 0:50:5] Gewichteter Fehlerwert: Weiß=0.18 (sehr präzise) /Schwarz=0.52.  Fehler:       	Weiß=2     	Schwarz=7     Ungenau:       	Weiß=1     	Schwarz=2     OK:         	Weiß=15    	Schwarz=11    Bester:       	Weiß=1     	---        Stark:        	Weiß=1     	---} 1-0

[Event "57th Biel Festival MTO 2024"]
[White "Asllani,Dorian"]
[Black "Valsecchi,Alessio"]
[Site "Biel"]
[Round "1.16"]
[Annotator "TA"]
[Result "0-1"]
[Date "2024.07.15"]
[WhiteElo "2154"]
[BlackElo "2483"]
[PlyCount "106"]
[TimeControl "60"]

{[%evp 10,106,19,0,0,0,15,8,29,24,24,31,13,-14,-13,-11,0,0,4,0,3,0,0,0,0,0,0,0,0,0,0,0,0,0,7,0,0,0,0,-16,-10,-23,-27,-25,-27,-26,-23,-33,-18,-20,-21,-18,-12,-16,-30,-248,-244,-314,-307,-304,-297,-321,-309,-322,-322,-315,-315,-313,-313,-336,-310,-484,-481,-432,-413,-610,-644,-716,-708,-969,-987,-960,-930,-1151,-1071,-6210,-6075,-29977,-29978,-29980,-29978,-29981,-29980,-29980,-29981,-29981,-29982,-29982,-29983]} 1. d4 {[%emt 0:0:22]} Nf6 {[%emt 0:0:35]} 2. c4 {[%emt 0:0:16]} e6 {[%emt 0:0:36]} 3. Nc3 {[%emt 0:0:22]} d5 {[%emt 0:1:31]} 4. Nf3 {[%emt 0:0:51]} dxc4 {[%emt 0:2:42]} 5. e3 {[%emt 0:0:46]} a6 {[%emt 0:0:34]} 6. a4 {[%emt 0:0:24]} b6 {[%emt 0:1:9]} 7. Bxc4 {[%emt 0:1:22]} Bb7 {[%emt 0:0:12] Against e4} 8. O-O {[%emt 0:3:49][%cal Oe3e4]} Bb4 {[%emt 0:1:13] The position is equal.} 9. Qe2 {[%emt 0:5:45]} O-O {[%emt 0:0:34]} 10. Rd1 {[%emt 0:4:22]} Qe7 {[%emt 0:0:57]} 11. Na2 {[%emt 0:10:46]} Bd6 {[%emt 0:12:11]} 12. b3 {[%emt 0:6:51]} Nbd7 {[%emt 0:8:43]} 13. Bb2 {[%emt 0:2:11]} e5 {[%emt 0:2:42]} 14. dxe5 {[%emt 0:15:17]} Nxe5 {[%emt 0:0:35]} 15. Nxe5 {[%emt 0:0:18]} Bxe5 {[%emt 0:0:8]} 16. h3 {[%emt 0:1:1]} Ne4 {[%emt 0:12:6]} 17. Bd5 {[%emt 0:6:33]} Bxb2 {[%emt 0:4:25]} 18. Qxb2 {[%emt 0:7:46]} (18. Bxb7 {simplifies} Bxa1 19. Bxa8 Rxa8 20. Rxa1 a5 21. Rd1 )Bxd5 {[%emt 0:4:59]} 19. Rxd5 {[%emt 0:0:15]} Rad8 {[%emt 0:6:29]} 20. Rad1 {[%emt 0:2:51][%cal Oa2b4]} Rxd5 {[%emt 0:11:0]} 21. Rxd5 {[%emt 0:0:12]} a5 {[%emt 0:0:14]} 22. Nc1 {[%emt 0:11:2]} h6 {[%emt 0:5:14]} 23. Qc2 {[%emt 0:10:38]} Qe6 {[%emt 0:5:38]} 24. Rd4 {[%emt 0:3:3]} Nc5 {[%emt 0:0:12]} 25. Qc4 {[%emt 0:0:32]} Qxc4 {[%emt 0:1:35]} 26. Rxc4 $11 {[%emt 0:0:14][%mdl 4096] Endgame. KRN-KRN} Rd8 {[%emt 0:0:9]} 27. Rd4 {[%emt 0:1:13]} Rxd4 {[%emt 0:5:50]} 28. exd4 {[%emt 0:0:1] KN-KN} Ne6 {[%emt 0:0:12]} 29. Ne2 {[%emt 0:0:19]} Kf8 {[%emt 0:2:2]} 30. f4 {[%emt 0:7:25]} c5 {[%emt 0:0:50]} 31. dxc5 {[%emt 0:4:46]} Nxc5 {[%emt 0:0:7]} 32. Nc3 $2 {[%emt 0:1:10] [#] White does not recover from this.} (32. Nd4 $11 {and White is okay.} )Ke7 $1 $19 {[%emt 0:1:18][%cal Oe7d6]} (32... Nxb3 33. Nd5 $17 )33. Nd5+ {[%emt 0:1:5]} Kd6 {[%emt 0:0:24]} 34. Nxb6 {[%emt 0:0:3] Strongly threatening Nc4+.} Nxb3 {[%emt 0:0:6]} 35. Kf2 {[%emt 0:1:4]} Kc5 {[%emt 0:0:44]} 36. Nc8 {[%emt 0:2:0] [#]} Kb4 $1 {[%emt 0:1:20]} 37. Ke3 {[%emt 0:1:26]} Kxa4 {[%emt 0:0:18]} 38. Kd3 {[%emt 0:0:17]} Kb4 {[%emt 0:1:35]} 39. Nb6 {[%emt 0:0:49]} Nc5+ {[%emt 0:4:28]} 40. Kc2 {[%emt 0:0:32]} (40. Kd4 $142 )Ne6 {[%emt 0:1:17]} 41. g3 {[%emt 0:3:11]} Kc5 {[%emt 0:2:28]} 42. Nc8 {[%emt 0:3:10]} (42. Nd7+ $142 Kd5 43. Kc3 )h5 {[%emt 0:2:23][%cal Oh5h4] aiming for ...h4!} 43. Ne7 {[%emt 0:5:34] [#]} h4 $1 {[%emt 0:0:30][%mdl 512]} 44. gxh4 {[%emt 0:0:8]} Nxf4 {[%emt 0:0:9]} 45. Nf5 {[%emt 0:0:7]} g6 {[%emt 0:0:43]} ({Stronger than} 45... Nxh3 46. Nxg7 Kd4 47. Nf5+ Ke5 48. Ne3 $11 )46. Nh6 {[%emt 0:0:15]} f5 {[%emt 0:0:32]} ({And not} 46... Nxh3 47. Nxf7 Kb4 48. Ne5 $11 )47. Ng8 {[%emt 0:0:16]} Kd6 {[%emt 0:0:34]} 48. Nh6 {[%emt 0:2:2]} Ke6 {[%emt 0:0:21] Black mates.} 49. Kb3 {[%emt 0:1:2]} Kf6 {[%emt 0:1:30]} 50. Ka4 {[%emt 0:0:21]} Kg7 {[%emt 0:0:20]} 51. Ng4 {[%emt 0:0:6]} fxg4 {[%emt 0:0:8]} 52. hxg4 {[%emt 0:0:6]} Ng2 {[%emt 0:0:7]} 53. h5 {[%emt 0:0:6]} g5 {[%emt 0:0:6] Weighted Error Value: White=0.55/Black=0.02 (flawless) .  Loses game:     	White=1     	---        Mistake:       	White=2     	---        Inaccurate:     	White=1     	---        OK:         	White=15    	Black=16     Best:        	---       	Black=5      Strong:       	---       	Black=2} ({Not} 53... gxh5 54. gxh5 Ne3 55. Kxa5 $11 )0-1

[Event "57th Biel Festival MTO 2024"]
[White "Macovei,Andrei"]
[Black "Vemparala,Nikash"]
[Site "Biel"]
[Round "1.17"]
[Annotator "TA"]
[Result "1-0"]
[Date "2024.07.15"]
[WhiteElo "2479"]
[BlackElo "2170"]
[PlyCount "79"]
[TimeControl "60"]

{[%evp 13,79,11,19,5,16,12,34,21,20,0,22,26,26,14,19,19,14,16,24,11,27,21,10,0,32,23,28,25,25,29,29,16,14,12,27,26,57,50,50,57,42,43,68,45,106,62,118,110,153,144,160,72,235,204,628,632,626,610,629,622,641,630,760,738,949,925,933,925]} 1. e4 {[%emt 0:0:12]} e5 {[%emt 0:0:15]} 2. Nf3 {[%emt 0:0:14]} Nc6 {[%emt 0:0:13]} 3. Bc4 {[%emt 0:1:1]} Bc5 {[%emt 0:0:7]} 4. c3 {[%emt 0:0:6]} Nf6 {[%emt 0:0:5]} 5. d3 {[%emt 0:0:6]} O-O {[%emt 0:0:52]} 6. O-O {[%emt 0:0:41]} d6 {[%emt 0:0:35]} 7. h3 {[%emt 0:0:10]} a6 {[%emt 0:0:31]} 8. a4 {[%emt 0:0:20]} Ba7 {[%emt 0:0:26]} 9. Re1 {[%emt 0:2:18]} Ne7 {[%emt 0:5:9]} 10. d4 {[%emt 0:8:0] Weiß steht etwas besser.} Ng6 {[%emt 0:6:33]} 11. Nbd2 {[%emt 0:2:55]} c6 {[%emt 0:9:59]} 12. Bf1 {[%emt 0:16:9]} Re8 {[%emt 0:5:3]} 13. a5 {[%emt 0:5:21]} Qc7 {[%emt 0:3:27]} 14. Qc2 {[%emt 0:4:46]} Bd7 {[%emt 0:6:28]} 15. dxe5 {[%emt 0:20:51]} Nxe5 {[%emt 0:7:37]} 16. Nxe5 {[%emt 0:10:59]} dxe5 {[%emt 0:3:52]} 17. Nf3 {[%emt 0:8:18][%cal Bd2f3,Bf3h4,Bh4f5,Bf5e3,Be3c4][%mdl 32]} h6 {[%emt 0:1:22]} 18. Bc4 {[%emt 0:4:29]} Be6 {[%emt 0:1:0]} 19. Bxe6 {[%emt 0:0:21]} Rxe6 {[%emt 0:0:13]} 20. Nh4 {[%emt 0:0:43]} Rd8 {[%emt 0:4:40]} 21. Nf5 {[%emt 0:2:58] Verhindert Red6.} Ne8 {[%emt 0:2:12][%cal Bf6e8,Be8d6,Bd6b5][%mdl 32]} 22. Be3 {[%emt 0:1:42]} Bxe3 {[%emt 0:1:5]} 23. Nxe3 {[%emt 0:0:3]} Nd6 {[%emt 0:0:58]} 24. Red1 {[%emt 0:2:32]} Nb5 {[%emt 0:7:54]} 25. Rxd8+ {[%emt 0:2:15]} Qxd8 {[%emt 0:0:43]} 26. Nc4 {[%emt 0:4:15]} Nd6 {[%emt 0:8:40]} 27. Rd1 {[%emt 0:0:30]} Qe7 {[%emt 0:0:54]} 28. Ne3 {[%emt 0:2:41] Weiß steht aktiver.} Rg6 {[%emt 0:1:45]} (28... Qc7 $14 )29. g3 {[%emt 0:2:8]} Qg5 {[%emt 0:4:19]} (29... Re6 $14 )30. Kg2 $16 {[%emt 0:1:7]} h5 {[%emt 0:1:30] [#]} 31. h4 $1 $36 {[%emt 0:0:9][%mdl 2560] Weiss bestimmt, wo es lang geht.} Qe7 {[%emt 0:0:49][%cal Oe7c7] [#]} (31... Qxh4 $2 32. Rxd6 Qg5 33. Rxg6 Qxg6 34. Qd3 $18 )(31... Qd8 32. Nf5 )32. Qe2 {[%emt 0:2:5]} (32. c4 $142 $1 )Qf6 $2 {[%emt 0:8:8] Das Aus für Schwarz.} (32... Qxh4 $2 {verliert.} 33. Rxd6 Qxe4+ 34. f3 $18 )(32... Rf6 $16 {ist wohl besser.} )33. Qxh5 $18 {[%emt 0:1:58]} Rh6 $2 {[%emt 0:2:24] [#] Es drohte Nf5} (33... Qe7 34. Nf5 Qf8 )34. Ng4 $1 {[%emt 0:1:27][%csl LRe5,LRf6,LRh6] Weiß steht klar auf Gewinn.} Rxh5 {[%emt 0:2:0]} 35. Nxf6+ {[%emt 0:0:1]} gxf6 {[%emt 0:0:1]} 36. Rxd6 {[%emt 0:0:10] KR-KR} Kg7 {[%emt 0:0:3]} 37. Rd7 {[%emt 0:1:0]} Rh8 {[%emt 0:0:17][%cal Bh5h8,Bh8d8,Bd8d2][%mdl 32]} 38. Rxb7 {[%emt 0:0:0]} Rd8 {[%emt 0:0:41]} 39. Rb6 {[%emt 0:0:0][%csl LRa6,LRc6]} Rd2 {[%emt 0:0:5]} 40. b4 {[%emt 0:0:3] Gewichteter Fehlerwert: Weiß=0.10 (sehr präzise) /Schwarz=0.38.  Verlustzug:     	---       	Schwarz=1     Fehler:       	Weiß=1     	Schwarz=3     Ungenau:       	Weiß=1     	Schwarz=3     OK:         	Weiß=12    	Schwarz=5     Bester:       	Weiß=2     	---} 1-0